[Event "*** Titled Tuesday Blitz"]
[Site "Chess.com"]
[Date "2021.03.30"]
[Round "10"]
[White "Nice_2_M8te_U"]
[Black "WPWPWP-2015"]
[Result "0-1"]
[WhiteElo "2556"]
[BlackElo "2482"]
[TimeControl "180+1"]
[EndTime "11:57:46 PDT"]
[Termination "WPWPWP-2015 won by resignation"]

1. d4 {[%clk 0:03:00.3]} 1... Nf6 {[%clk 0:02:51.4]} 2. Nc3 {[%clk 0:03:00.4]}
2... c5 {[%clk 0:02:45.6]} 3. d5 {[%clk 0:02:59.9]} 3... d6 {[%clk 0:02:44.4]}
4. e4 {[%clk 0:03:00.3]} 4... e6 {[%clk 0:02:44.3]} 5. Bb5+ {[%clk 0:02:59.3]}
5... Bd7 {[%clk 0:02:43.5]} 6. a4 {[%clk 0:02:59.8]} 6... Be7 {[%clk 0:02:41.1]}
7. Nf3 {[%clk 0:02:59.6]} 7... exd5 {[%clk 0:02:40.2]} 8. exd5 {[%clk
0:03:00.5]} 8... O-O {[%clk 0:02:39.7]} 9. O-O {[%clk 0:03:01]} 9... a6 {[%clk
0:02:39.4]} 10. Be2 {[%clk 0:03:00.4]} 10... Bg4 {[%clk 0:02:35.4]} 11. Bf4
{[%clk 0:03:00.4]} 11... Nbd7 {[%clk 0:02:34.7]} 12. Re1 {[%clk 0:03:00.2]}
12... Re8 {[%clk 0:02:34]} 13. a5 {[%clk 0:02:59.5]} 13... Nh5 {[%clk
0:02:30.2]} 14. Be3 {[%clk 0:02:58.9]} 14... Bf8 {[%clk 0:02:26.6]} 15. Qd2
{[%clk 0:02:59.4]} 15... h6 {[%clk 0:02:24.6]} 16. h3 {[%clk 0:02:59.5]} 16...
Bxf3 {[%clk 0:02:16.3]} 17. Bxf3 {[%clk 0:03:00.4]} 17... Nhf6 {[%clk
0:02:15.8]} 18. Bf4 {[%clk 0:03:00.9]} 18... Rxe1+ {[%clk 0:02:10.7]} 19. Qxe1
{[%clk 0:03:01.8]} 19... Qc7 {[%clk 0:02:06.4]} 20. Qd2 {[%clk 0:02:59]} 20...
Re8 {[%clk 0:02:06]} 21. g4 {[%clk 0:02:54.4]} 21... Ne5 {[%clk 0:02:05.1]} 22.
Bg2 {[%clk 0:02:54.4]} 22... Ng6 {[%clk 0:01:58.7]} 23. Bg3 {[%clk 0:02:54]}
23... Qe7 {[%clk 0:01:57.4]} 24. Kh2 {[%clk 0:02:47.9]} 24... Ne5 {[%clk
0:01:55]} 25. b3 {[%clk 0:02:47.4]} 25... Ng6 {[%clk 0:01:24.8]} 26. f4 {[%clk
0:02:32.6]} 26... Qe3 {[%clk 0:01:13.2]} 27. Qxe3 {[%clk 0:02:21.3]} 27... Rxe3
{[%clk 0:01:14.1]} 28. Na4 {[%clk 0:02:21.9]} 28... Re2 {[%clk 0:01:05.8]} 29.
c4 {[%clk 0:02:21.4]} 29... Ne4 {[%clk 0:01:02.8]} 30. Rf1 {[%clk 0:02:05.3]}
30... Be7 {[%clk 0:00:50.5]} 31. f5 {[%clk 0:01:50.4]} 31... Nh4 {[%clk
0:00:48]} 32. Bxh4 {[%clk 0:01:47.4]} 32... Bxh4 {[%clk 0:00:48.9]} 33. Rf3
{[%clk 0:01:46.1]} 33... Bf6 {[%clk 0:00:45.9]} 34. Kg1 {[%clk 0:01:38.1]} 34...
Bd4+ {[%clk 0:00:43.4]} 35. Kf1 {[%clk 0:01:38.2]} 35... Ra2 {[%clk 0:00:39.7]}
36. Rd3 {[%clk 0:01:38.3]} 36... Ra1+ {[%clk 0:00:36]} 37. Ke2 {[%clk
0:01:38.4]} 37... Ra2+ {[%clk 0:00:35.5]} 38. Kf3 {[%clk 0:01:34]} 38... Ng5+
{[%clk 0:00:34.1]} 39. Kf4 {[%clk 0:01:25.5]} 39... Rxg2 {[%clk 0:00:30.8]} 40.
h4 {[%clk 0:01:24.6]} 40... Be5+ {[%clk 0:00:28.3]} 41. Ke3 {[%clk 0:01:25.2]}
41... Rg3+ {[%clk 0:00:25.4]} 42. Ke2 {[%clk 0:01:25.8]} 42... Rxd3 {[%clk
0:00:24.5]} 43. Kxd3 {[%clk 0:01:26.7]} 43... Nf3 {[%clk 0:00:24.5]} 44. h5
{[%clk 0:01:27.3]} 44... Nh2 {[%clk 0:00:24.3]} 45. g5 {[%clk 0:01:26.5]} 45...
hxg5 {[%clk 0:00:23.8]} 46. Ke4 {[%clk 0:01:27]} 46... Ng4 {[%clk 0:00:22.8]}
47. Nb6 {[%clk 0:01:26.8]} 47... Nf6+ {[%clk 0:00:22.6]} 48. Kf3 {[%clk
0:01:27.3]} 48... g4+ {[%clk 0:00:22.9]} 49. Kg2 {[%clk 0:01:27.5]} 49... Nxh5
{[%clk 0:00:20.2]} 50. Nd7 {[%clk 0:01:28]} 50... f6 {[%clk 0:00:19.7]} 51. Nb8
{[%clk 0:01:04]} 51... Kf7 {[%clk 0:00:16.9]} 52. Nc6 {[%clk 0:01:04.9]} 52...
Ke8 {[%clk 0:00:15.9]} 53. b4 {[%clk 0:00:55.2]} 53... bxc6 {[%clk 0:00:13.9]}
54. dxc6 {[%clk 0:00:55.8]} 54... cxb4 {[%clk 0:00:13.9]} 55. c7 {[%clk
0:00:54.5]} 55... Kd7 {[%clk 0:00:13.1]} 56. c8=Q+ {[%clk 0:00:55.4]} 56... Kxc8
{[%clk 0:00:13]} 0-1

[Event "*** Titled Tuesday Blitz"]
[Site "Chess.com"]
[Date "2021.03.30"]
[Round "10"]
[White "xozr"]
[Black "UCantHandleDenker"]
[Result "0-1"]
[WhiteElo "2364"]
[BlackElo "2538"]
[TimeControl "180+1"]
[EndTime "11:57:47 PDT"]
[Termination "UCantHandleDenker won by checkmate"]

1. e4 {[%clk 0:03:00.9]} 1... d6 {[%clk 0:02:59.3]} 2. d4 {[%clk 0:02:59.9]}
2... Nf6 {[%clk 0:02:59.8]} 3. Nc3 {[%clk 0:02:59.7]} 3... e5 {[%clk 0:03:00.3]}
4. dxe5 {[%clk 0:02:58.7]} 4... dxe5 {[%clk 0:02:59.8]} 5. Qxd8+ {[%clk
0:02:59.6]} 5... Kxd8 {[%clk 0:02:59.6]} 6. Bg5 {[%clk 0:02:59.7]} 6... c6
{[%clk 0:02:59.3]} 7. O-O-O+ {[%clk 0:02:59.5]} 7... Ke8 {[%clk 0:02:59.9]} 8.
Bxf6 {[%clk 0:02:59.6]} 8... gxf6 {[%clk 0:02:58.3]} 9. g3 {[%clk 0:02:54.9]}
9... Bb4 {[%clk 0:02:42.4]} 10. Nge2 {[%clk 0:02:52.9]} 10... Nd7 {[%clk
0:02:24.9]} 11. a3 {[%clk 0:02:52.5]} 11... Bc5 {[%clk 0:02:22.2]} 12. f4 {[%clk
0:02:52.2]} 12... b5 {[%clk 0:02:05.4]} 13. Bh3 {[%clk 0:02:50.1]} 13... Nb6
{[%clk 0:02:04.8]} 14. Bxc8 {[%clk 0:02:39.6]} 14... Rxc8 {[%clk 0:02:05.7]} 15.
Rd3 {[%clk 0:02:30.6]} 15... a5 {[%clk 0:02:00.5]} 16. Rf1 {[%clk 0:02:19.2]}
16... Ke7 {[%clk 0:01:27.5]} 17. fxe5 {[%clk 0:01:53.5]} 17... fxe5 {[%clk
0:01:26.9]} 18. g4 {[%clk 0:01:53.9]} 18... Rhg8 {[%clk 0:01:11.4]} 19. h3
{[%clk 0:01:51.3]} 19... Nc4 {[%clk 0:01:07.3]} 20. Ng3 {[%clk 0:01:49.4]} 20...
Nd6 {[%clk 0:01:04.6]} 21. Nf5+ {[%clk 0:01:34.5]} 21... Nxf5 {[%clk 0:01:03.2]}
22. Rxf5 {[%clk 0:01:26.1]} 22... f6 {[%clk 0:01:02.9]} 23. Ne2 {[%clk
0:01:24.7]} 23... Ke6 {[%clk 0:00:45.5]} 24. Ng3 {[%clk 0:01:21.2]} 24... Rcd8
{[%clk 0:00:39.8]} 25. Nh5 {[%clk 0:01:18.7]} 25... Be7 {[%clk 0:00:39.9]} 26.
Kd2 {[%clk 0:01:09.1]} 26... c5 {[%clk 0:00:39.4]} 27. Ng3 {[%clk 0:00:45.2]}
27... c4 {[%clk 0:00:38.7]} 28. Rxd8 {[%clk 0:00:44.6]} 28... Rxd8+ {[%clk
0:00:39.6]} 29. Ke2 {[%clk 0:00:45.2]} 29... b4 {[%clk 0:00:38.5]} 30. axb4
{[%clk 0:00:44.8]} 30... axb4 {[%clk 0:00:39.4]} 31. Rh5 {[%clk 0:00:40.6]}
31... c3 {[%clk 0:00:38]} 32. bxc3 {[%clk 0:00:40.2]} 32... bxc3 {[%clk
0:00:38.4]} 33. Nf1 {[%clk 0:00:38.8]} 33... Rd4 {[%clk 0:00:38]} 34. Rxh7
{[%clk 0:00:35.9]} 34... Rxe4+ {[%clk 0:00:37.7]} 35. Kd3 {[%clk 0:00:35.8]}
35... Rd4+ {[%clk 0:00:35.4]} 36. Kxc3 {[%clk 0:00:35]} 36... Rf4 {[%clk
0:00:29.1]} 37. Kd3 {[%clk 0:00:31.3]} 37... Rxf1 {[%clk 0:00:28.3]} 38. h4
{[%clk 0:00:27]} 38... Rg1 {[%clk 0:00:27.2]} 39. Rg7 {[%clk 0:00:26.5]} 39...
Rg3+ {[%clk 0:00:24.6]} 40. Ke4 {[%clk 0:00:25.2]} 40... Rc3 {[%clk 0:00:14.4]}
41. g5 {[%clk 0:00:25]} 41... f5# {[%clk 0:00:13.7]} 0-1

[Event "*** Titled Tuesday Blitz"]
[Site "Chess.com"]
[Date "2021.03.30"]
[Round "10"]
[White "picturesquecheck"]
[Black "McCarthyStone"]
[Result "1-0"]
[WhiteElo "2285"]
[BlackElo "2404"]
[TimeControl "180+1"]
[EndTime "11:57:48 PDT"]
[Termination "picturesquecheck won by resignation"]

1. e4 {[%clk 0:03:00.9]} 1... d6 {[%clk 0:03:00.2]} 2. d3 {[%clk 0:02:59.4]}
2... Nf6 {[%clk 0:03:01.1]} 3. Nd2 {[%clk 0:02:59.9]} 3... g6 {[%clk 0:02:53.5]}
4. g3 {[%clk 0:02:58.8]} 4... Bg7 {[%clk 0:02:54]} 5. Bg2 {[%clk 0:02:58.8]}
5... O-O {[%clk 0:02:54.9]} 6. Ne2 {[%clk 0:02:59.3]} 6... d5 {[%clk 0:02:48.4]}
7. O-O {[%clk 0:02:55.5]} 7... c5 {[%clk 0:02:46.2]} 8. e5 {[%clk 0:02:52.6]}
8... Nfd7 {[%clk 0:02:43.7]} 9. f4 {[%clk 0:02:50.7]} 9... Nc6 {[%clk
0:02:37.9]} 10. c3 {[%clk 0:02:40.9]} 10... e6 {[%clk 0:02:37.4]} 11. d4 {[%clk
0:02:37.4]} 11... cxd4 {[%clk 0:02:34.7]} 12. cxd4 {[%clk 0:02:38.3]} 12... Nb6
{[%clk 0:02:34.9]} 13. Nb3 {[%clk 0:02:32.9]} 13... Nc4 {[%clk 0:02:29.8]} 14.
Kh1 {[%clk 0:02:32.4]} 14... b6 {[%clk 0:02:29.1]} 15. g4 {[%clk 0:02:31.7]}
15... Qh4 {[%clk 0:02:27.4]} 16. Ng3 {[%clk 0:02:27.3]} 16... a5 {[%clk
0:02:19.4]} 17. f5 {[%clk 0:02:15.6]} 17... a4 {[%clk 0:02:18.2]} 18. Nd2 {[%clk
0:02:15.5]} 18... Ne3 {[%clk 0:02:18.2]} 19. Nf3 {[%clk 0:02:03.4]} 19... Qxg3
{[%clk 0:01:50.9]} 20. Bxe3 {[%clk 0:01:59.7]} 20... Qxg4 {[%clk 0:01:48.8]} 21.
f6 {[%clk 0:01:59]} 21... Bh8 {[%clk 0:01:49.2]} 22. Rg1 {[%clk 0:01:57]} 22...
Ba6 {[%clk 0:01:45.2]} 23. Rc1 {[%clk 0:01:51]} 23... Rfc8 {[%clk 0:01:44.1]}
24. Bf1 {[%clk 0:01:49.2]} 24... Qe4 {[%clk 0:01:39.4]} 25. Bxa6 {[%clk
0:01:40.3]} 25... Rxa6 {[%clk 0:01:40.3]} 26. Bf2 {[%clk 0:01:28.2]} 26... Raa8
{[%clk 0:01:38.6]} 27. Re1 {[%clk 0:01:27.3]} 27... Qf5 {[%clk 0:01:30.1]} 28.
Bg1 {[%clk 0:01:11.5]} 28... Nb4 {[%clk 0:01:25.1]} 29. Rxc8+ {[%clk 0:00:55.7]}
29... Rxc8 {[%clk 0:01:26]} 30. a3 {[%clk 0:00:55.9]} 30... Nd3 {[%clk
0:01:21.2]} 31. Rf1 {[%clk 0:00:51.3]} 31... Nxb2 {[%clk 0:01:21]} 32. Qa1
{[%clk 0:00:44.4]} 32... Rc2 {[%clk 0:01:18.1]} 33. Qb1 {[%clk 0:00:32.9]} 33...
h5 {[%clk 0:01:13.5]} 34. Nd2 {[%clk 0:00:20.4]} 34... Qd3 {[%clk 0:01:07.1]}
35. Nf3 {[%clk 0:00:20]} 35... Nc4 {[%clk 0:00:55.7]} 36. Qb5 {[%clk 0:00:15.4]}
36... Nd6 {[%clk 0:00:21.8]} 37. Qxd3 {[%clk 0:00:13.3]} 37... Rc4 {[%clk
0:00:19.2]} 38. exd6 {[%clk 0:00:13]} 38... Bxf6 {[%clk 0:00:20.1]} 39. Ne5
{[%clk 0:00:12.9]} 39... Bd8 {[%clk 0:00:19.8]} 1-0

[Event "*** Titled Tuesday Blitz"]
[Site "Chess.com"]
[Date "2021.03.30"]
[Round "10"]
[White "Nachsueb"]
[Black "Das_Virus_2020"]
[Result "1-0"]
[WhiteElo "2190"]
[BlackElo "2427"]
[TimeControl "180+1"]
[EndTime "11:57:49 PDT"]
[Termination "Nachsueb won on time"]

1. d4 {[%clk 0:03:00.9]} 1... Nf6 {[%clk 0:02:59.5]} 2. c4 {[%clk 0:03:01]} 2...
c5 {[%clk 0:02:59.8]} 3. d5 {[%clk 0:03:00.9]} 3... b5 {[%clk 0:02:59.8]} 4.
cxb5 {[%clk 0:03:00.1]} 4... a6 {[%clk 0:03:00]} 5. Nc3 {[%clk 0:03:00.7]} 5...
axb5 {[%clk 0:02:59.6]} 6. e4 {[%clk 0:03:01.2]} 6... b4 {[%clk 0:02:59.4]} 7.
Nb5 {[%clk 0:03:01.4]} 7... d6 {[%clk 0:02:59.9]} 8. Bc4 {[%clk 0:03:00.5]} 8...
g6 {[%clk 0:02:36.3]} 9. e5 {[%clk 0:02:43]} 9... dxe5 {[%clk 0:02:35.9]} 10. d6
{[%clk 0:02:36.3]} 10... exd6 {[%clk 0:02:36.8]} 11. Bg5 {[%clk 0:02:35.1]}
11... Ra6 {[%clk 0:02:33.8]} 12. Nf3 {[%clk 0:02:20.8]} 12... Be7 {[%clk
0:02:08.2]} 13. Bh6 {[%clk 0:02:06.4]} 13... Be6 {[%clk 0:02:01.6]} 14. Bxe6
{[%clk 0:01:43.9]} 14... fxe6 {[%clk 0:02:00.9]} 15. Qb3 {[%clk 0:01:39]} 15...
Nd5 {[%clk 0:01:55.7]} 16. O-O {[%clk 0:01:34.7]} 16... Nc6 {[%clk 0:01:43]} 17.
Rfd1 {[%clk 0:01:22]} 17... Nd4 {[%clk 0:01:29.5]} 18. Nbxd4 {[%clk 0:01:19.1]}
18... cxd4 {[%clk 0:01:23]} 19. Bg7 {[%clk 0:01:07.3]} 19... Rg8 {[%clk
0:01:19]} 20. Bh6 {[%clk 0:01:07.3]} 20... Qb6 {[%clk 0:01:00.2]} 21. Rac1
{[%clk 0:01:01.1]} 21... Kd7 {[%clk 0:00:57.9]} 22. Bg5 {[%clk 0:00:40.1]} 22...
Qa5 {[%clk 0:00:35.7]} 23. Bxe7 {[%clk 0:00:38.8]} 23... Kxe7 {[%clk 0:00:30.3]}
24. Ng5 {[%clk 0:00:30.5]} 24... h6 {[%clk 0:00:24.2]} 25. Ne4 {[%clk
0:00:26.9]} 25... Qxa2 {[%clk 0:00:17.5]} 26. Qh3 {[%clk 0:00:26.2]} 26... Rh8
{[%clk 0:00:16.4]} 27. Qh4+ {[%clk 0:00:25.1]} 27... Kf7 {[%clk 0:00:13.7]} 28.
Ng5+ {[%clk 0:00:18.6]} 28... hxg5 {[%clk 0:00:12.3]} 29. Qxh8 {[%clk
0:00:19.5]} 29... Qxb2 {[%clk 0:00:11.7]} 30. Qh7+ {[%clk 0:00:18.3]} 30... Kf6
{[%clk 0:00:11.9]} 31. Qg8 {[%clk 0:00:16.1]} 31... Ra7 {[%clk 0:00:10.7]} 32.
Rc8 {[%clk 0:00:14.9]} 32... Rf7 {[%clk 0:00:10]} 33. Rf8 {[%clk 0:00:14.3]} 1-0

[Event "*** Titled Tuesday Blitz"]
[Site "Chess.com"]
[Date "2021.03.30"]
[Round "10"]
[White "BeyondMadness"]
[Black "mamonika"]
[Result "1-0"]
[WhiteElo "2266"]
[BlackElo "2054"]
[TimeControl "180+1"]
[EndTime "11:57:50 PDT"]
[Termination "BeyondMadness won on time"]

1. d4 {[%clk 0:03:00.9]} 1... d5 {[%clk 0:02:59.6]} 2. c4 {[%clk 0:03:00.7]}
2... e6 {[%clk 0:02:59.7]} 3. Nc3 {[%clk 0:02:59.7]} 3... c6 {[%clk 0:02:59.4]}
4. Nf3 {[%clk 0:02:56.9]} 4... dxc4 {[%clk 0:02:59]} 5. a4 {[%clk 0:02:55.8]}
5... Bb4 {[%clk 0:02:56.8]} 6. e3 {[%clk 0:02:52.1]} 6... b5 {[%clk 0:02:55.9]}
7. Bd2 {[%clk 0:02:50.4]} 7... Bd7 {[%clk 0:02:36.8]} 8. axb5 {[%clk 0:02:42.3]}
8... cxb5 {[%clk 0:02:36.9]} 9. Ne4 {[%clk 0:02:27.5]} 9... Bxd2+ {[%clk
0:02:31.7]} 10. Qxd2 {[%clk 0:02:28.4]} 10... Qb6 {[%clk 0:02:09.4]} 11. Qb4
{[%clk 0:02:03.3]} 11... Ne7 {[%clk 0:02:02.7]} 12. Nd6+ {[%clk 0:01:59.4]}
12... Kf8 {[%clk 0:02:02.9]} 13. Ne5 {[%clk 0:01:54.7]} 13... Nec6 {[%clk
0:01:43.2]} 14. Ndxc4+ {[%clk 0:01:29]} 14... Nxb4 {[%clk 0:01:37.4]} 15. Nxb6
{[%clk 0:01:28.2]} 15... Nc2+ {[%clk 0:01:32.6]} 16. Kd2 {[%clk 0:01:24.3]}
16... Nxa1 {[%clk 0:01:28.8]} 17. Nxa8 {[%clk 0:01:24.3]} 17... Nb3+ {[%clk
0:01:22.2]} 18. Kc3 {[%clk 0:01:23.2]} 18... Na5 {[%clk 0:01:17.9]} 19. Nxd7+
{[%clk 0:01:13.6]} 19... Nxd7 {[%clk 0:01:18.8]} 20. Bxb5 {[%clk 0:01:12]} 20...
Ke7 {[%clk 0:01:14.8]} 21. Ra1 {[%clk 0:01:05.1]} 21... Rxa8 {[%clk 0:01:02.2]}
22. Rxa5 {[%clk 0:01:03.5]} 22... Nb6 {[%clk 0:00:57.4]} 23. Kd3 {[%clk
0:01:00.2]} 23... Kd6 {[%clk 0:00:51.8]} 24. e4 {[%clk 0:00:58.1]} 24... f6
{[%clk 0:00:47.5]} 25. f4 {[%clk 0:00:57.2]} 25... Kc7 {[%clk 0:00:42.4]} 26.
Ra3 {[%clk 0:00:48.8]} 26... Kd6 {[%clk 0:00:24.9]} 27. e5+ {[%clk 0:00:42.8]}
27... fxe5 {[%clk 0:00:21.1]} 28. fxe5+ {[%clk 0:00:43.7]} 28... Ke7 {[%clk
0:00:12.5]} 29. Rc3 {[%clk 0:00:39.6]} 29... Rc8 {[%clk 0:00:12.7]} 30. g3
{[%clk 0:00:30.1]} 30... Rxc3+ {[%clk 0:00:10.8]} 31. bxc3 {[%clk 0:00:31]}
31... a5 {[%clk 0:00:09.9]} 32. c4 {[%clk 0:00:29.8]} 32... h5 {[%clk
0:00:05.9]} 33. h4 {[%clk 0:00:27.3]} 33... Kd8 {[%clk 0:00:04.7]} 34. Kc3
{[%clk 0:00:27]} 34... Ke7 {[%clk 0:00:04.4]} 35. Bc6 {[%clk 0:00:24.5]} 35...
Kf7 {[%clk 0:00:02.8]} 36. c5 {[%clk 0:00:24.5]} 36... Nd5+ {[%clk 0:00:01.3]}
37. Bxd5 {[%clk 0:00:23.7]} 37... exd5 {[%clk 0:00:02.2]} 38. Kb3 {[%clk
0:00:24]} 38... Ke6 {[%clk 0:00:01.3]} 39. Ka4 {[%clk 0:00:24.1]} 39... Kd7
{[%clk 0:00:01.8]} 40. Kxa5 {[%clk 0:00:24.2]} 40... Kc6 {[%clk 0:00:02.7]} 41.
Kb4 {[%clk 0:00:24.3]} 1-0

[Event "*** Titled Tuesday Blitz"]
[Site "Chess.com"]
[Date "2021.03.30"]
[Round "10"]
[White "Eltaj_Safarli"]
[Black "ChessWarrior7197"]
[Result "1/2-1/2"]
[WhiteElo "2892"]
[BlackElo "2913"]
[TimeControl "180+1"]
[EndTime "11:57:55 PDT"]
[Termination "Game drawn by repetition"]

1. e4 {[%clk 0:03:00.9]} 1... c6 {[%clk 0:02:59.5]} 2. d4 {[%clk 0:02:59.7]}
2... d5 {[%clk 0:03:00.4]} 3. exd5 {[%clk 0:03:00.6]} 3... cxd5 {[%clk
0:03:00.5]} 4. c4 {[%clk 0:03:01.5]} 4... Nf6 {[%clk 0:02:59.5]} 5. Nc3 {[%clk
0:03:02.4]} 5... e6 {[%clk 0:03:00]} 6. Nf3 {[%clk 0:03:02.3]} 6... Bb4 {[%clk
0:03:00.1]} 7. cxd5 {[%clk 0:03:02.5]} 7... Nxd5 {[%clk 0:03:00.1]} 8. Bd2
{[%clk 0:03:02.9]} 8... Nc6 {[%clk 0:02:57.7]} 9. Bd3 {[%clk 0:03:03.2]} 9...
O-O {[%clk 0:02:56.4]} 10. O-O {[%clk 0:03:02.7]} 10... Be7 {[%clk 0:02:56.9]}
11. Re1 {[%clk 0:03:02.7]} 11... b6 {[%clk 0:02:53.7]} 12. Nxd5 {[%clk
0:03:01.9]} 12... Qxd5 {[%clk 0:02:23.8]} 13. Be4 {[%clk 0:03:01.8]} 13... Qd6
{[%clk 0:02:24.2]} 14. Qc2 {[%clk 0:03:01.6]} 14... Bb7 {[%clk 0:02:24.7]} 15.
Bxh7+ {[%clk 0:03:00.7]} 15... Kh8 {[%clk 0:02:25.3]} 16. Be4 {[%clk 0:02:58.3]}
16... Bf6 {[%clk 0:02:01.1]} 17. Bc3 {[%clk 0:02:47.3]} 17... Rfd8 {[%clk
0:01:46.3]} 18. Rad1 {[%clk 0:02:45.6]} 18... Nb4 {[%clk 0:01:41.9]} 19. Bxb4
{[%clk 0:02:35.9]} 19... Bxe4 {[%clk 0:01:41.6]} 20. Rxe4 {[%clk 0:02:27.9]}
20... Qxb4 {[%clk 0:01:39.9]} 21. h4 {[%clk 0:02:25.7]} 21... Rac8 {[%clk
0:01:35.3]} 22. Qe2 {[%clk 0:02:25.9]} 22... Qc4 {[%clk 0:01:33.3]} 23. Qe3
{[%clk 0:02:08.7]} 23... Rd5 {[%clk 0:01:26.7]} 24. g4 {[%clk 0:02:06.4]} 24...
Qc2 {[%clk 0:01:08.5]} 25. Re1 {[%clk 0:02:02.2]} 25... Qxb2 {[%clk 0:00:56.8]}
26. g5 {[%clk 0:01:54.7]} 26... Rc3 {[%clk 0:00:56.4]} 27. Qf4 {[%clk
0:01:53.1]} 27... Rf5 {[%clk 0:00:56.6]} 28. Qb8+ {[%clk 0:01:51.3]} 28... Kh7
{[%clk 0:00:57.1]} 29. R1e2 {[%clk 0:01:38.6]} 29... Qb1+ {[%clk 0:00:32.5]} 30.
Ne1 {[%clk 0:01:37.4]} 30... Bxg5 {[%clk 0:00:23.8]} 31. hxg5 {[%clk 0:01:23.2]}
31... Rxg5+ {[%clk 0:00:24.7]} 32. Kh2 {[%clk 0:01:23.7]} 32... Rh5+ {[%clk
0:00:24.3]} 33. Kg2 {[%clk 0:01:23.6]} 33... Rg5+ {[%clk 0:00:23.9]} 34. Kh2
{[%clk 0:01:23.7]} 34... Rh5+ {[%clk 0:00:19.7]} 35. Kg2 {[%clk 0:01:18.8]}
35... Rch3 {[%clk 0:00:14.9]} 36. Qf4 {[%clk 0:01:06.8]} 36... f5 {[%clk
0:00:15.2]} 37. Rxe6 {[%clk 0:01:03.1]} 37... R3h4 {[%clk 0:00:15.7]} 38. Qf3
{[%clk 0:01:01.1]} 38... Rg4+ {[%clk 0:00:15.3]} 39. Kf1 {[%clk 0:01:01]} 39...
Rgh4 {[%clk 0:00:10.3]} 40. Kg1 {[%clk 0:00:52]} 40... Rg4+ {[%clk 0:00:09.2]}
41. Kf1 {[%clk 0:00:52]} 41... Rgh4 {[%clk 0:00:08.3]} 42. Qg3 {[%clk
0:00:32.7]} 42... Rg4 {[%clk 0:00:04.6]} 43. Qf3 {[%clk 0:00:31.3]} 1/2-1/2

[Event "*** Titled Tuesday Blitz"]
[Site "Chess.com"]
[Date "2021.03.30"]
[Round "10"]
[White "annacramling"]
[Black "stepakyedael"]
[Result "0-1"]
[WhiteElo "2077"]
[BlackElo "2261"]
[TimeControl "180+1"]
[EndTime "11:57:55 PDT"]
[Termination "stepakyedael won on time"]

1. d4 {[%clk 0:03:00.9]} 1... Nf6 {[%clk 0:02:59.7]} 2. c4 {[%clk 0:02:58.8]}
2... g6 {[%clk 0:02:54.9]} 3. Nc3 {[%clk 0:02:58.4]} 3... Bg7 {[%clk 0:02:55]}
4. e4 {[%clk 0:02:57]} 4... d6 {[%clk 0:02:55.2]} 5. h3 {[%clk 0:02:56.9]} 5...
O-O {[%clk 0:02:55]} 6. Bg5 {[%clk 0:02:56.5]} 6... Qe8 {[%clk 0:02:51.2]} 7.
Nf3 {[%clk 0:02:51.4]} 7... Na6 {[%clk 0:02:51]} 8. Be2 {[%clk 0:02:50.6]} 8...
e5 {[%clk 0:02:50.7]} 9. O-O {[%clk 0:02:47.3]} 9... exd4 {[%clk 0:02:46.1]} 10.
Qxd4 {[%clk 0:02:43]} 10... Nd7 {[%clk 0:02:12.4]} 11. Qe3 {[%clk 0:02:35]}
11... c6 {[%clk 0:02:03.2]} 12. Rad1 {[%clk 0:02:24]} 12... Qe6 {[%clk
0:02:00.1]} 13. Bh6 {[%clk 0:02:15.8]} 13... Re8 {[%clk 0:01:49.1]} 14. Bxg7
{[%clk 0:02:05.4]} 14... Kxg7 {[%clk 0:01:48.3]} 15. Qd4+ {[%clk 0:02:05.5]}
15... Ne5 {[%clk 0:01:45.1]} 16. Qxd6 {[%clk 0:02:02.7]} 16... Nxf3+ {[%clk
0:01:44.5]} 17. Bxf3 {[%clk 0:01:45.4]} 17... Qxc4 {[%clk 0:01:43.1]} 18. e5
{[%clk 0:01:34.4]} 18... Be6 {[%clk 0:01:37.8]} 19. Ne4 {[%clk 0:01:21.6]} 19...
Qb4 {[%clk 0:01:13.8]} 20. Nf6 {[%clk 0:01:06.7]} 20... Rec8 {[%clk 0:00:55.6]}
21. Qxb4 {[%clk 0:00:46.5]} 21... Nxb4 {[%clk 0:00:54.7]} 22. a3 {[%clk
0:00:46.8]} 22... Na6 {[%clk 0:00:51.1]} 23. Bg4 {[%clk 0:00:32.4]} 23... Bxg4
{[%clk 0:00:45.7]} 24. hxg4 {[%clk 0:00:26]} 24... Rd8 {[%clk 0:00:45.2]} 25. g5
{[%clk 0:00:26.1]} 25... Nc5 {[%clk 0:00:39.8]} 26. Rd6 {[%clk 0:00:17.4]} 26...
h6 {[%clk 0:00:32.4]} 27. b4 {[%clk 0:00:05.1]} 27... Ne6 {[%clk 0:00:29.5]} 28.
gxh6+ {[%clk 0:00:05]} 28... Kxh6 {[%clk 0:00:29]} 29. Rfd1 {[%clk 0:00:04.7]}
29... Kg7 {[%clk 0:00:22.1]} 30. Rd7 {[%clk 0:00:03.1]} 30... Rxd7 {[%clk
0:00:17.8]} 31. Rxd7 {[%clk 0:00:04]} 31... Rb8 {[%clk 0:00:17.3]} 32. Kf1
{[%clk 0:00:04.4]} 32... b6 {[%clk 0:00:14.3]} 33. Ke2 {[%clk 0:00:04.7]} 33...
c5 {[%clk 0:00:13.4]} 34. Rxa7 {[%clk 0:00:04.3]} 34... Nd4+ {[%clk 0:00:11.6]}
0-1

[Event "*** Titled Tuesday Blitz"]
[Site "Chess.com"]
[Date "2021.03.30"]
[Round "10"]
[White "Sofiia_Hryzlova"]
[Black "ljuks68"]
[Result "0-1"]
[WhiteElo "2326"]
[BlackElo "2471"]
[TimeControl "180+1"]
[EndTime "11:57:56 PDT"]
[Termination "ljuks68 won by resignation"]

1. c4 {[%clk 0:02:57.2]} 1... c6 {[%clk 0:02:58.9]} 2. e3 {[%clk 0:02:55.7]}
2... d5 {[%clk 0:02:59]} 3. Nf3 {[%clk 0:02:48.1]} 3... Nf6 {[%clk 0:02:59.4]}
4. Nc3 {[%clk 0:02:47.4]} 4... e6 {[%clk 0:02:58.3]} 5. Qc2 {[%clk 0:02:44.9]}
5... Nbd7 {[%clk 0:02:57.2]} 6. b3 {[%clk 0:02:45.2]} 6... Bd6 {[%clk
0:02:55.1]} 7. d4 {[%clk 0:02:45]} 7... O-O {[%clk 0:02:53]} 8. Bb2 {[%clk
0:02:41.7]} 8... a6 {[%clk 0:02:51]} 9. Be2 {[%clk 0:02:40.2]} 9... b5 {[%clk
0:02:50.8]} 10. a3 {[%clk 0:02:33.7]} 10... Bb7 {[%clk 0:02:40.9]} 11. c5 {[%clk
0:02:30.2]} 11... Bc7 {[%clk 0:02:40.1]} 12. O-O {[%clk 0:02:30.1]} 12... Re8
{[%clk 0:02:38.4]} 13. e4 {[%clk 0:02:24.5]} 13... dxe4 {[%clk 0:02:33.7]} 14.
Nxe4 {[%clk 0:02:23.9]} 14... Nxe4 {[%clk 0:02:33.7]} 15. Qxe4 {[%clk
0:02:23.3]} 15... Nf6 {[%clk 0:02:34]} 16. Qh4 {[%clk 0:02:21.6]} 16... Nd5
{[%clk 0:02:31.7]} 17. Qg4 {[%clk 0:02:08.6]} 17... Bc8 {[%clk 0:02:25.5]} 18.
Bd3 {[%clk 0:01:59]} 18... e5 {[%clk 0:02:16.7]} 19. Qh5 {[%clk 0:01:43.7]}
19... e4 {[%clk 0:02:01.9]} 20. Ng5 {[%clk 0:01:27.4]} 20... Nf6 {[%clk
0:01:47]} 21. Qxf7+ {[%clk 0:01:25]} 21... Kh8 {[%clk 0:01:46.2]} 22. d5 {[%clk
0:01:15.1]} 22... Be5 {[%clk 0:01:13.2]} 23. Bxe4 {[%clk 0:00:26.6]} 23... h6
{[%clk 0:00:38.6]} 24. Bxe5 {[%clk 0:00:14.6]} 24... Rxe5 {[%clk 0:00:37.1]} 25.
f4 {[%clk 0:00:15.1]} 25... Re7 {[%clk 0:00:19.4]} 26. Qg6 {[%clk 0:00:14.9]}
26... hxg5 {[%clk 0:00:18.6]} 27. Bc2 {[%clk 0:00:12.1]} 27... g4 {[%clk
0:00:16.3]} 28. Rae1 {[%clk 0:00:10.2]} 28... cxd5 {[%clk 0:00:12.6]} 29. Re5
{[%clk 0:00:09.7]} 29... Kg8 {[%clk 0:00:09.6]} 30. Rg5 {[%clk 0:00:05.3]} 30...
Ne4 {[%clk 0:00:08.3]} 31. Qh7+ {[%clk 0:00:04.7]} 31... Kxh7 {[%clk 0:00:07.3]}
32. Rh5+ {[%clk 0:00:03.3]} 32... Kg8 {[%clk 0:00:07.1]} 33. Rh8+ {[%clk
0:00:03.1]} 33... Kxh8 {[%clk 0:00:07]} 34. f5 {[%clk 0:00:02.7]} 34... Qc7
{[%clk 0:00:07.1]} 0-1